bitfinex/quotes_BTCUSD_20260103
["timestamp","ask_amount","ask_price","bid_price","bid_amount"]
[1767435287643,0.01114504,89726.0,89722.0,0.01114553]
[1767435287817,0.01114516,89725.0,89720.0,0.01114578]
[1767435288050,0.000999,89722.0,89720.0,0.01114578]
[1767435288254,0.01114504,89726.0,89721.0,0.01114566]
[1767435292111,0.01114516,89725.0,89720.0,0.01114578]
[1767435292832,0.01114516,89725.0,89721.0,0.01114566]
[1767435293038,0.01114504,89726.0,89721.0,0.01114566]
[1767435293842,0.01114516,89725.0,89720.0,0.01114578]
[1767435294045,0.000999,89721.0,89720.0,0.01114578]
[1767435294416,0.01114516,89725.0,89720.0,0.01114578]
[1767435294969,0.01114516,89725.0,89721.0,0.01114566]
[1767435295368,0.01114504,89726.0,89721.0,0.01114566]
[1767435295957,0.01114504,89726.0,89720.0,0.01114578]
[1767435295958,0.01114516,89725.0,89720.0,0.01114578]
[1767435300782,0.01114504,89726.0,89721.0,0.01114566]
[1767435301951,0.15722463,89730.0,89723.0,0.01114541]
[1767435301952,0.01114466,89729.0,89723.0,0.01114541]
[1767435302158,0.01114479,89728.0,89723.0,0.01114541]
[1767435304058,0.01114491,89727.0,89722.0,0.01114553]
[1767435304921,0.01114504,89726.0,89721.0,0.01114566]
[1767435305632,0.01114491,89727.0,89722.0,0.01114553]
[1767435305840,0.01114504,89726.0,89721.0,0.01114566]
[1767435306149,0.01114504,89726.0,89722.0,0.01114553]
[1767435306349,0.01114491,89727.0,89722.0,0.01114553]
[1767435306532,0.01114491,89727.0,89721.0,0.01114566]
[1767435306533,0.01114504,89726.0,89721.0,0.01114566]
[1767435307588,0.01114516,89725.0,89720.0,0.01114578]
[1767435307769,0.01114516,89725.0,89721.0,0.01114566]
[1767435308505,0.01114516,89725.0,89720.0,0.01114578]
[1767435308634,0.01114516,89725.0,89721.0,0.01114566]
[1767435309772,0.01114516,89725.0,89720.0,0.01114578]
[1767435313037,0.01114529,89724.0,89720.0,0.01114578]
[1767435313439,0.01114516,89725.0,89720.0,0.01114578]
[1767435313891,0.01114516,89725.0,89721.0,0.01114566]
[1767435314815,0.01114516,89725.0,89720.0,0.01114578]
[1767435316605,0.01114516,89725.0,89721.0,0.01114566]
[1767435319147,0.01114504,89726.0,89722.0,0.01114553]
[1767435319413,0.01114491,89727.0,89722.0,0.01114553]
[1767435319742,0.01114504,89726.0,89721.0,0.01114566]
[1767435320467,0.01114504,89726.0,89722.0,0.01114553]
[1767435320737,0.01114491,89727.0,89722.0,0.01114553]
[1767435321287,0.01114466,89729.0,89724.0,0.01114529]
[1767435322016,0.01114479,89728.0,89724.0,0.01114529]
[1767435322742,0.06686589,89732.0,89722.0,0.06687278]
[1767435322743,0.10657913,89754.0,89743.0,0.01114293]
[1767435322917,0.01114193,89751.0,89743.0,0.01114293]
[1767435323118,0.01114168,89753.0,89745.0,0.05571341]
[1767435323331,0.10657913,89754.0,89745.0,0.05571341]
[1767435323657,0.11773913,89759.0,89745.0,0.05571341]
[1767435323793,0.10657913,89757.0,89753.0,0.01114168]
[1767435324003,0.10657913,89762.0,89756.0,0.01114131]
[1767435324209,0.05570107,89765.0,89747.0,0.29527514]
[1767435324210,0.11773913,89765.0,89761.0,0.01114069]
[1767435324625,0.12887932,89765.0,89760.0,0.01114081]
[1767435324865,0.11771945,89764.0,89759.0,0.06684518]
[1767435325068,0.11771945,89764.0,89760.0,0.01114081]
[1767435325321,0.11771957,89763.0,89758.0,0.01114106]
[1767435327097,0.11771957,89763.0,89759.0,0.01114094]
[1767435327328,0.11771957,89763.0,89758.0,0.01114106]
[1767435327486,0.1177197,89762.0,89758.0,0.01114106]
[1767435327699,0.10657913,89762.0,89758.0,0.01114106]
[1767435328301,0.1177197,89762.0,89757.0,0.01114119]
[1767435328510,0.10657913,89762.0,89758.0,0.01114106]
[1767435328710,0.1177197,89762.0,89757.0,0.01114119]
[1767435329346,0.1177197,89762.0,89758.0,0.01114106]
[1767435329561,0.10657913,89762.0,89758.0,0.01114106]
[1767435329810,0.01114069,89761.0,89756.0,0.01114131]
[1767435330029,0.01114069,89761.0,89757.0,0.01114119]
[1767435330232,0.06684493,89760.0,89752.0,0.05570886]
[1767435330458,0.10353613,89758.0,89754.0,0.01114156]
[1767435330649,0.11467719,89758.0,89752.0,0.05570886]
[1767435330820,0.10353613,89758.0,89754.0,0.01114156]
[1767435331349,0.10353613,89757.0,89754.0,0.01114156]
[1767435332729,0.10353613,89757.0,89753.0,0.01116]
[1767435332730,0.11467732,89757.0,89753.0,0.01116]
[1767435332939,0.10353613,89752.0,89742.0,0.0557148]
[1767435333147,0.10353613,89745.0,89740.0,0.0111433]
[1767435333405,0.11467943,89740.0,89734.0,0.01114404]
[1767435333574,0.10353613,89740.0,89734.0,0.06686375]
[1767435333784,0.10253713,89740.0,89738.0,0.05571775]
[1767435335938,0.10353613,89746.0,89741.0,0.01114317]
[1767435336136,0.10353613,89746.0,89743.0,0.01114293]
[1767435338738,0.10353613,89746.0,89743.0,0.06685738]
[1767435339723,0.10353613,89746.0,89744.0,0.05571357]
[1767435340629,0.10353613,89746.0,89743.0,0.06685738]
[1767435343854,0.10353613,89746.0,89743.0,0.06694142]
[1767435344911,0.00091496,89743.0,89734.0,0.01114404]
[1767435345132,0.10353613,89745.0,89741.0,0.01114317]
[1767435345360,0.10353613,89745.0,89742.0,0.01114305]
[1767435346081,0.10353613,89745.0,89743.0,0.05571465]
[1767435346294,0.10353613,89748.0,89744.0,0.0111428]
[1767435346730,0.10353613,89748.0,89745.0,0.01114268]
[1767435347271,0.01114131,89756.0,89749.0,0.01114218]
[1767435347473,0.01114106,89758.0,89748.0,0.06693777]
[1767435347474,0.01114106,89758.0,89750.0,0.05570987]
[1767435347611,0.01114119,89757.0,89753.0,0.01114168]
[1767435347809,0.01114119,89757.0,89752.0,0.01114181]
[1767435348241,0.01114131,89756.0,89749.0,0.0668531]
[1767435348398,0.01114144,89755.0,89749.0,0.0668531]
[1767435349022,0.01114144,89755.0,89750.0,0.01114206]
[1767435350323,0.01114156,89754.0,89747.0,0.01114243]
[1767435350522,0.01114156,89754.0,89748.0,0.0111423]
[1767435351425,0.06684993,89754.0,89746.0,0.01114255]
[1767435351625,0.06684993,89754.0,89747.0,0.01114243]
[1767435351626,0.01114168,89753.0,89747.0,0.01114243]
[1767435352068,0.01114218,89749.0,89744.0,0.0111428]
[1767435352655,0.0111423,89748.0,89744.0,0.0111428]
[1767435353005,0.01114218,89749.0,89744.0,0.0111428]
[1767435353209,0.11467843,89748.0,89736.0,0.01114379]
[1767435353413,0.01109812,89745.0,89739.0,0.01114342]
[1767435354236,0.11467868,89746.0,89741.0,0.01114317]
[1767435354610,0.01114255,89746.0,89742.0,0.01114305]
[1767435354762,0.01114255,89746.0,89740.0,0.0111433]
[1767435355338,0.0111428,89744.0,89740.0,0.0111433]
[1767435355939,0.0111428,89744.0,89739.0,0.01114342]
[1767435356160,0.01114268,89745.0,89740.0,0.0111433]
[1767435356387,0.0111428,89744.0,89739.0,0.01114342]
[1767435357821,0.01114293,89743.0,89737.0,0.00035975]
[1767435358016,0.01114293,89743.0,89737.0,0.01150342]
[1767435358364,0.01114317,89741.0,89737.0,0.01150342]
[1767435358564,0.01114317,89741.0,89737.0,0.00035975]
[1767435358770,0.01114317,89741.0,89737.0,0.01150342]
[1767435358942,0.01114293,89743.0,89737.0,0.06722118]
[1767435359144,0.0111428,89744.0,89739.0,0.01114342]
[1767435360585,0.0111428,89744.0,89740.0,0.0111433]
[1767435361821,0.01114255,89746.0,89744.0,0.000999]
[1767435362114,0.06685324,89749.0,89744.0,0.0111428]
[1767435362407,0.0111423,89748.0,89744.0,0.0111428]
[1767435362616,0.01114218,89749.0,89744.0,0.0111428]
[1767435362815,0.01114218,89749.0,89748.0,0.000999]
[1767435363018,0.0111423,89748.0,89744.0,0.0111428]
[1767435363177,0.01114218,89749.0,89744.0,0.0111428]
[1767435364335,0.0111423,89748.0,89744.0,0.0111428]
[1767435364543,0.01114218,89749.0,89744.0,0.0111428]
[1767435365640,0.01114131,89756.0,89750.0,0.01114206]
[1767435365982,0.01114131,89756.0,89751.0,0.01114193]
[1767435366331,0.01114131,89756.0,89750.0,0.01114206]
[1767435366332,0.01114144,89755.0,89750.0,0.01114206]
[1767435366574,0.01114144,89755.0,89749.0,0.06685268]
[1767435366745,0.01114144,89755.0,89750.0,0.01114206]
[1767435368032,0.01114131,89756.0,89751.0,0.01114193]
[1767435368687,0.01114094,89759.0,89756.0,0.000999]
[1767435368863,0.02230069,89761.0,89756.0,0.01114131]
[1767435369402,0.01114094,89759.0,89755.0,0.01114144]
[1767435369549,0.01114094,89759.0,89754.0,0.01114156]
[1767435369748,0.01114094,89759.0,89755.0,0.01114144]
[1767435370251,0.07800468,89761.0,89759.0,0.000999]
[1767435370252,0.01116,89761.0,89759.0,0.000999]
[1767435370567,0.01116,89761.0,89758.0,0.01114106]
[1767435370973,0.01116,89761.0,89757.0,0.01114119]
[1767435372388,0.01114069,89761.0,89756.0,0.01114131]
[1767435372606,0.01114081,89760.0,89755.0,0.01114144]
[1767435374861,0.01114094,89759.0,89752.0,0.02230181]
[1767435375861,0.01114119,89757.0,89752.0,0.02230181]
[1767435376330,0.01114131,89756.0,89752.0,0.01116]
[1767435376739,0.01114106,89758.0,89752.0,0.01116]
[1767435376938,0.01114094,89759.0,89754.0,0.01114156]
[1767435378120,0.01114094,89759.0,89755.0,0.01114144]
[1767435378814,0.01114081,89760.0,89755.0,0.01114144]
[1767435379225,0.01114094,89759.0,89754.0,0.01114156]
[1767435380656,0.01114106,89758.0,89752.0,0.02230181]
[1767435380864,0.01114119,89757.0,89752.0,0.02230181]
[1767435383711,0.01114131,89756.0,89752.0,0.01116]
[1767435384266,0.01114106,89758.0,89752.0,0.07801086]
[1767435385219,0.01114106,89758.0,89754.0,0.01114156]
[1767435385999,0.01114094,89759.0,89754.0,0.01114156]
[1767435386210,0.01114094,89759.0,89755.0,0.01114144]
[1767435386629,0.01114081,89760.0,89755.0,0.01114144]
[1767435389242,0.05570333,89762.0,89755.0,0.01114144]
[1767435389499,0.01114044,89763.0,89758.0,0.01114106]
[1767435390174,0.01114057,89762.0,89757.0,0.01114119]
[1767435390380,0.01114044,89763.0,89758.0,0.01114106]
[1767435391353,0.01114057,89762.0,89757.0,0.01114119]
[1767435391727,0.01114069,89761.0,89756.0,0.01114131]
[1767435392220,0.01114069,89761.0,89757.0,0.01114119]
[1767435392428,0.01109588,89763.0,89758.0,0.01114106]
[1767435393077,0.01114057,89762.0,89757.0,0.01114119]
[1767435394710,0.01114069,89761.0,89756.0,0.01114131]
[1767435395533,0.01114069,89761.0,89757.0,0.01114119]
[1767435396689,0.01114094,89759.0,89754.0,0.01114156]
[1767435396931,0.01114081,89760.0,89754.0,0.01114156]
[1767435397145,0.01114094,89759.0,89753.0,0.01114168]
[1767435397312,0.01114094,89759.0,89754.0,0.01114156]
[1767435397716,0.000999,89754.0,89752.0,0.01116]
[1767435398124,0.01114119,89757.0,89752.0,0.01116]
[1767435398417,0.01114131,89756.0,89752.0,0.02230181]
[1767435398896,0.01114144,89755.0,89752.0,0.01116]
[1767435399040,0.01114106,89758.0,89753.0,0.01114168]
[1767435399419,0.01114106,89758.0,89754.0,0.01114156]
[1767435399653,0.01114081,89760.0,89755.0,0.01114144]
[1767435400137,0.01114057,89762.0,89756.0,0.01114131]
[1767435400847,0.01114069,89761.0,89756.0,0.01114131]
[1767435402188,0.000999,89756.0,89755.0,0.01114144]
[1767435402397,0.01114081,89760.0,89755.0,0.01114144]
[1767435403795,0.01114081,89760.0,89756.0,0.01114131]
[1767435404158,0.01114069,89761.0,89756.0,0.01114131]
[1767435405007,0.06684446,89761.0,89755.0,0.01114144]
[1767435405988,0.01114081,89760.0,89755.0,0.01114144]
[1767435410362,0.01114094,89759.0,89754.0,0.01114156]
[1767435410890,0.01114094,89759.0,89755.0,0.01114144]
[1767435411561,0.01114106,89758.0,89753.0,0.01114168]
[1767435411695,0.01114094,89759.0,89754.0,0.01114156]
[1767435412098,0.01114094,89759.0,89753.0,0.01114168]
[1767435412509,0.01114131,89756.0,89752.0,0.01116]
[1767435413223,0.01114131,89756.0,89752.0,0.02230181]
[1767435413419,0.01114119,89757.0,89752.0,0.02230181]
[1767435414880,0.01114144,89755.0,89752.0,0.01116]
[1767435416264,0.01114144,89755.0,89752.0,0.010161]
[1767435416471,0.06684906,89755.0,89752.0,0.010161]
[1767435416953,0.01114144,89755.0,89752.0,0.010161]
[1767435418284,0.01114131,89756.0,89752.0,0.02130281]
[1767435418482,0.01114144,89755.0,89752.0,0.010161]
[1767435421979,0.01114255,89746.0,89739.0,0.01114342]
[1767435422205,0.0920434,89756.0,89735.0,0.10169329]
[1767435422206,0.0920434,89741.0,89735.0,0.01114392]
[1767435422423,0.0910444,89739.0,89731.0,0.01114442]
[1767435422632,0.0920434,89737.0,89733.0,0.01163933]
[1767435423078,0.01150288,89739.0,89734.0,0.01114404]
[1767435423282,0.00035946,89739.0,89736.0,0.16855607]
[1767435423470,0.00035946,89739.0,89736.0,0.06686278]
[1767435423706,0.000999,89736.0,89733.0,0.00049516]
[1767435423913,0.10418619,89736.0,89733.0,0.00049516]
[1767435424124,0.01114379,89736.0,89733.0,0.00049516]
[1767435425059,0.06686181,89738.0,89733.0,0.00049516]
[1767435425511,0.01114379,89736.0,89733.0,0.00049516]
[1767435427314,0.01114379,89736.0,89733.0,1.6e-07]
[1767435429063,0.01150288,89739.0,89736.0,0.000495]
[1767435429064,0.00035946,89739.0,89736.0,0.000495]
[1767435429303,0.00035946,89739.0,89735.0,0.10169329]
[1767435429462,0.00035946,89739.0,89734.0,0.05571977]
[1767435429840,0.00035946,89739.0,89736.0,0.01114379]
[1767435429968,0.01114305,89742.0,89737.0,0.01114367]
[1767435430175,0.01114305,89742.0,89737.0,0.01120778]
[1767435430600,0.01114317,89741.0,89737.0,6.411e-05]
[1767435431644,0.0111433,89740.0,89737.0,6.411e-05]
[1767435434400,0.01114317,89741.0,89737.0,6.411e-05]
[1767435436471,0.0920434,89738.0,89737.0,1.1e-07]
[1767435437428,0.05571713,89739.0,89737.0,1.1e-07]
[1767435438307,0.0920434,89738.0,89737.0,1.1e-07]
[1767435438513,0.0920434,89735.0,89733.0,1.6e-07]
[1767435438711,0.0920434,89734.0,89733.0,1.6e-07]
[1767435439131,0.01114255,89746.0,89738.0,0.01114355]
[1767435439374,0.01114255,89746.0,89739.0,0.01114342]
[1767435439573,0.01114243,89747.0,89742.0,0.01114305]
[1767435439784,0.01114243,89747.0,89741.0,0.01114317]
[1767435440105,0.01114255,89746.0,89741.0,0.01114317]
[1767435440252,0.01114268,89745.0,89740.0,0.0111433]
[1767435440458,0.01114255,89746.0,89741.0,0.01114317]
[1767435440655,0.01114243,89747.0,89742.0,0.01114305]
[1767435440843,0.01114255,89746.0,89741.0,0.01114317]
[1767435441023,0.01114255,89746.0,89742.0,0.01114305]
[1767435441221,0.01114255,89746.0,89741.0,0.01114317]
[1767435441491,0.01114268,89745.0,89740.0,0.0111433]
[1767435441873,0.01114268,89745.0,89741.0,0.01114317]
[1767435442464,0.01114255,89746.0,89741.0,0.01114317]
[1767435444952,0.01114268,89745.0,89740.0,0.0111433]
[1767435445153,0.000999,89740.0,89735.0,0.01114392]
[1767435445356,0.01114367,89737.0,89733.0,1.6e-07]
[1767435445621,0.01114379,89736.0,89733.0,1.6e-07]
[1767435445809,0.05572017,89735.0,89733.0,1.6e-07]
[1767435445969,0.14776357,89735.0,89733.0,1.6e-07]
[1767435446555,0.0920434,89734.0,89733.0,1.6e-07]
[1767435446863,0.06686278,89736.0,89733.0,1.6e-07]
[1767435447050,0.01114355,89738.0,89733.0,1.6e-07]
[1767435447251,0.01114317,89741.0,89735.0,0.01114392]
[1767435447482,0.0111433,89740.0,89735.0,0.01114392]
[1767435448142,0.1031867,89740.0,89735.0,0.01114392]
[1767435448302,0.10318682,89739.0,89734.0,0.01114404]
[1767435448735,0.10318682,89739.0,89735.0,0.01114392]
[1767435448942,0.10318682,89739.0,89734.0,0.01114404]
[1767435449515,0.0920434,89739.0,89735.0,0.01114392]
[1767435450515,0.0920434,89739.0,89736.0,0.01114379]
[1767435451355,0.0920434,89739.0,89735.0,0.01114392]
[1767435451663,0.01114355,89738.0,89733.0,0.06686457]
[1767435451861,0.00099884,89733.0,89730.0,0.01114454]
[1767435452229,0.09592572,89735.0,89731.0,0.01114442]
[1767435452432,0.10706964,89735.0,89730.0,0.01114454]
[1767435452744,0.10706976,89734.0,89729.0,0.01114466]
[1767435452943,0.10706976,89734.0,89730.0,0.01114454]
[1767435453366,0.10706976,89734.0,89729.0,0.01014566]
[1767435453908,0.09592572,89734.0,89730.0,0.01114454]
[1767435454221,0.09592572,89734.0,89731.0,0.01114442]
[1767435454463,0.01114392,89735.0,89730.0,0.01114454]
[1767435454896,0.09592572,89736.0,89733.0,0.01114417]
[1767435455091,0.09592572,89740.0,89735.0,0.000999]
[1767435455532,0.09592572,89740.0,89733.0,0.01114417]
[1767435455914,0.10706927,89738.0,89733.0,0.01114417]
[1767435456097,0.10706939,89737.0,89732.0,0.01114429]
[1767435457263,0.01114392,89735.0,89730.0,0.01114454]
[1767435458223,0.01114392,89735.0,89731.0,0.01114442]
[1767435458565,0.01114392,89735.0,89730.0,0.01114454]
[1767435458931,0.01114392,89735.0,89729.0,0.01014566]
[1767435459358,0.01114404,89734.0,89730.0,0.01114454]
[1767435459715,0.01114404,89734.0,89729.0,0.01014566]
[1767435460097,0.01114392,89735.0,89730.0,0.01114454]
[1767435460438,0.01114392,89735.0,89728.0,0.05572359]
[1767435460439,0.01114417,89733.0,89728.0,0.01114479]
[1767435461060,0.01114417,89733.0,89725.0,0.06688558]
[1767435461061,0.01114429,89732.0,89725.0,0.06688558]
[1767435461283,0.01114429,89732.0,89727.0,0.01114491]
[1767435461783,0.01114429,89732.0,89725.0,0.01116]
[1767435461784,0.01114479,89728.0,89725.0,0.01116]
[1767435462241,0.06686918,89728.0,89725.0,0.01116]
[1767435462815,0.01114479,89728.0,89725.0,0.01116]
[1767435463032,0.01114479,89728.0,89714.0,0.01114653]
[1767435463033,0.01114553,89722.0,89714.0,0.01114653]
[1767435463214,0.15165154,89726.0,89722.0,0.000999]
[1767435463549,0.01114516,89725.0,89722.0,0.000999]
[1767435463874,0.09592572,89725.0,89721.0,0.01114566]
[1767435467097,0.10707051,89728.0,89725.0,0.000999]
[1767435467257,0.10707051,89728.0,89723.0,0.01114541]
[1767435467436,0.01114491,89727.0,89723.0,0.01114541]
[1767435469288,0.01114479,89728.0,89723.0,0.01114541]
[1767435469887,0.01114491,89727.0,89723.0,0.01114541]
[1767435470088,0.01114491,89727.0,89722.0,0.01114553]
[1767435470525,0.10707113,89723.0,89716.0,0.01129628]
[1767435470692,0.09592572,89721.0,89718.0,0.01114603]
[1767435471668,0.10707138,89721.0,89716.0,0.01129628]
[1767435471872,0.01114541,89723.0,89721.0,0.000999]
[1767435472055,0.01114541,89723.0,89718.0,0.01114603]
[1767435472248,0.01114541,89723.0,89719.0,0.01114591]
[1767435472422,0.06687217,89724.0,89719.0,0.01114591]
[1767435472842,0.01114541,89723.0,89719.0,0.01114591]
[1767435473040,0.01114541,89723.0,89717.0,0.01151946]
[1767435473661,0.01114553,89722.0,89717.0,0.01151946]
[1767435473864,0.1070715,89720.0,89717.0,0.01151946]
[1767435474771,0.10707125,89722.0,89720.0,0.000999]
[1767435474971,0.10707125,89722.0,89717.0,0.02266561]
[1767435475172,0.01114553,89722.0,89717.0,0.02266561]
[1767435476239,0.01114541,89723.0,89718.0,0.01114603]
[1767435476435,0.01114516,89725.0,89723.0,0.000999]
[1767435476646,0.09592572,89727.0,89722.0,0.01114553]
[1767435476880,0.09592572,89727.0,89721.0,0.01114566]
[1767435476881,0.01114504,89726.0,89721.0,0.01114566]
[1767435477552,0.01114516,89725.0,89720.0,0.01114578]
[1767435478600,0.01114529,89724.0,89719.0,0.01114591]
[1767435478943,0.01114516,89725.0,89720.0,0.01114578]
[1767435479490,0.01114504,89726.0,89721.0,0.01114566]
[1767435480375,0.01114504,89726.0,89722.0,0.01114553]
[1767435481072,0.01114504,89726.0,89721.0,0.01114566]
[1767435482454,0.01114516,89725.0,89720.0,0.01114578]
[1767435482797,0.01114516,89725.0,89721.0,0.01114566]
[1767435483205,0.01114516,89725.0,89720.0,0.01114578]
[1767435483393,0.01114529,89724.0,89719.0,0.01114591]
[1767435485172,0.01114504,89726.0,89724.0,0.000999]
[1767435485319,0.01114504,89726.0,89721.0,0.01114566]
[1767435485662,0.01114516,89725.0,89720.0,0.01114578]
[1767435488524,0.01114566,89721.0,89717.0,0.00035946]
[1767435488948,0.01114566,89721.0,89717.0,0.01150561]
[1767435489158,0.01114553,89722.0,89717.0,0.01150561]
[1767435490116,0.01114553,89722.0,89718.0,0.01114603]
[1767435490368,0.01114553,89722.0,89717.0,0.01150561]
[1767435491354,0.01114566,89721.0,89717.0,0.01150561]
[1767435491779,0.01114553,89722.0,89717.0,0.01150561]
[1767435492244,0.01114553,89722.0,89718.0,0.01114603]
[1767435492855,0.06687248,89723.0,89718.0,0.01114603]
[1767435493077,0.01114541,89723.0,89718.0,0.01114603]
[1767435494017,0.01114553,89722.0,89718.0,0.01114603]
[1767435494214,0.01114541,89723.0,89718.0,0.01114603]
[1767435494873,0.01114541,89723.0,89717.0,0.01150561]
[1767435495098,0.01114553,89722.0,89717.0,0.01150561]
[1767435495991,0.01114553,89722.0,89718.0,0.01114603]
[1767435496198,0.01114553,89722.0,89717.0,0.01150561]
[1767435496533,0.01114541,89723.0,89718.0,0.01114603]
[1767435499646,0.1011909,89723.0,89718.0,0.01114603]
[1767435500083,0.1011909,89723.0,89716.0,0.06702733]
[1767435500284,0.01114541,89723.0,89716.0,0.06713498]
[1767435500487,0.01114553,89722.0,89717.0,0.01114615]
[1767435501201,0.01114541,89723.0,89718.0,0.01114603]
[1767435502174,0.01114553,89722.0,89717.0,0.01114615]
[1767435504266,0.01114553,89722.0,89718.0,0.01114603]
[1767435504468,0.01114566,89721.0,89716.0,0.01140393]
[1767435504884,0.01114553,89722.0,89717.0,0.01114615]
[1767435505083,0.01114566,89721.0,89716.0,0.01140393]
[1767435506100,0.01114566,89721.0,89717.0,0.01114615]
[1767435506336,0.01114553,89722.0,89717.0,0.01114615]
[1767435506638,0.01114566,89721.0,89716.0,0.01140393]
[1767435507239,0.01114553,89722.0,89717.0,0.01114615]
[1767435508129,0.01114566,89721.0,89716.0,0.01140393]
[1767435508335,0.01114566,89721.0,89716.0,0.00025765]
[1767435508537,0.01114566,89721.0,89716.0,0.01140393]
[1767435513357,0.01114541,89723.0,89717.0,0.01114615]
[1767435513565,0.01114541,89723.0,89718.0,0.01114603]
[1767435514893,0.01114529,89724.0,89719.0,0.01114591]
[1767435515897,0.01114541,89723.0,89719.0,0.01114591]
[1767435516063,0.01114541,89723.0,89718.0,0.01114603]
[1767435516766,0.01114541,89723.0,89719.0,0.01114591]
[1767435517356,0.01114529,89724.0,89719.0,0.01114591]
[1767435519180,0.01114541,89723.0,89718.0,0.01114603]
[1767435520112,0.01114566,89721.0,89716.0,0.00025765]
[1767435520312,0.01114578,89720.0,89716.0,0.00025765]
[1767435521012,0.01114591,89719.0,89716.0,0.00025765]
[1767435523597,0.01114578,89720.0,89716.0,0.00025765]
[1767435524854,0.01114591,89719.0,89716.0,0.00025765]
[1767435525216,0.01114578,89720.0,89716.0,0.00025765]
[1767435525615,0.01114578,89720.0,89716.0,0.01140393]
[1767435525935,0.01114566,89721.0,89716.0,0.01140393]
[1767435526461,0.01114566,89721.0,89716.0,0.00025765]
[1767435526640,0.01114591,89719.0,89716.0,0.00025765]
[1767435527024,0.01114578,89720.0,89716.0,0.00025765]
[1767435527594,0.01114566,89721.0,89716.0,0.01140393]
[1767435527742,0.01114578,89720.0,89716.0,0.00025765]
[1767435528791,0.01114578,89720.0,89716.0,0.01140393]
[1767435529294,0.01114578,89720.0,89716.0,0.00025765]
[1767435530033,0.01114566,89721.0,89716.0,0.01140393]
[1767435530712,0.01114578,89720.0,89716.0,0.01140393]
[1767435531559,0.01114578,89720.0,89716.0,0.00025765]
[1767435532045,0.01114591,89719.0,89716.0,0.00025765]
[1767435532282,0.01114578,89720.0,89716.0,0.00025765]
[1767435533675,0.01114578,89720.0,89716.0,0.01140393]
[1767435534177,0.01114578,89720.0,89716.0,0.00025765]
[1767435534777,0.01114591,89719.0,89716.0,0.00025765]
[1767435535485,0.01114566,89721.0,89719.0,0.000999]
[1767435536122,0.01114566,89721.0,89717.0,0.01114615]
[1767435536688,0.01114553,89722.0,89717.0,0.01114615]
[1767435537505,0.01114566,89721.0,89716.0,0.01140393]
[1767435537916,0.01114578,89720.0,89716.0,0.00025765]
[1767435538283,0.01114578,89720.0,89716.0,0.01140393]
[1767435538499,0.01114578,89720.0,89716.0,0.00025765]
[1767435538705,0.01114591,89719.0,89716.0,0.00025765]
[1767435544288,0.01114578,89720.0,89716.0,0.00025765]
[1767435544661,0.01114566,89721.0,89716.0,0.01140393]
[1767435544907,0.06687376,89722.0,89720.0,0.000999]
[1767435545073,0.01114566,89721.0,89717.0,0.01114615]
[1767435545279,0.01114553,89722.0,89717.0,0.01114615]
[1767435545675,0.01114566,89721.0,89716.0,0.01140393]
[1767435546357,0.01114578,89720.0,89716.0,0.01140393]
[1767435546600,0.01114578,89720.0,89716.0,0.00025765]
[1767435547503,0.06687361,89722.0,89716.0,0.01140393]
[1767435547703,0.01114566,89721.0,89717.0,0.01114615]
[1767435547902,0.01114516,89725.0,89720.0,0.01114578]
[1767435548103,0.01114442,89731.0,89723.0,0.08352984]
[1767435548104,0.01114466,89729.0,89723.0,0.08352984]
[1767435548343,0.01114479,89728.0,89725.0,0.08352984]
[1767435548492,0.01014579,89728.0,89725.0,0.08352984]
[1767435548674,0.01114466,89729.0,89724.0,0.01114529]
[1767435549091,0.01114479,89728.0,89723.0,0.01114541]
[1767435549338,0.01114516,89725.0,89721.0,0.01114566]
[1767435549656,0.01114516,89725.0,89719.0,0.02230591]
[1767435549657,0.01114529,89724.0,89719.0,0.02230591]
[1767435551075,0.01114529,89724.0,89720.0,0.01114578]
[1767435551412,0.01114529,89724.0,89719.0,0.02230591]
[1767435551613,0.01114529,89724.0,89720.0,0.01114578]
[1767435551945,0.01114516,89725.0,89720.0,0.01114578]
[1767435557436,0.01114516,89725.0,89721.0,0.01114566]
[1767435557629,0.01114516,89725.0,89720.0,0.01114578]
[1767435558007,0.01114529,89724.0,89719.0,0.02230591]
[1767435558393,0.01114516,89725.0,89720.0,0.01114578]
[1767435563829,0.06686917,89728.0,89720.0,0.06687464]
[1767435563979,0.01114491,89727.0,89721.0,0.01114566]
[1767435564761,0.01114504,89726.0,89721.0,0.01114566]
[1767435565153,0.01114516,89725.0,89720.0,0.06687464]
[1767435565354,0.01114504,89726.0,89721.0,0.01114566]
[1767435565701,0.01114504,89726.0,89722.0,0.01114553]
[1767435566271,0.01114504,89726.0,89721.0,0.01114566]
[1767435570956,0.01114491,89727.0,89722.0,0.01114553]
[1767435573080,0.01114504,89726.0,89721.0,0.01114566]
[1767435574556,0.01114516,89725.0,89720.0,0.06687464]
[1767435574867,0.01114516,89725.0,89721.0,0.01114566]
[1767435576343,0.01114516,89725.0,89720.0,0.06687464]
[1767435577245,0.01114504,89726.0,89721.0,0.01114566]
[1767435577485,0.01114491,89727.0,89722.0,0.01114553]
[1767435578857,0.01114479,89728.0,89723.0,0.01114541]
[1767435579059,0.01114479,89728.0,89724.0,0.01114529]
[1767435580287,0.01114466,89729.0,89725.0,0.01114516]
[1767435580674,0.01114466,89729.0,89724.0,0.01114529]
[1767435581710,0.01114479,89728.0,89723.0,0.01114541]
[1767435582070,0.01114491,89727.0,89723.0,0.01114541]
[1767435582741,0.01114491,89727.0,89722.0,0.06687285]
[1767435584419,0.01114479,89728.0,89723.0,0.01114541]
[1767435584627,0.05572332,89730.0,89724.0,0.01114529]
[1767435584836,0.05572332,89730.0,89723.0,0.01114541]
[1767435585053,0.01114466,89729.0,89723.0,0.01114541]
[1767435585256,0.01114479,89728.0,89724.0,0.01114529]
[1767435585651,0.01114479,89728.0,89723.0,0.01114541]
[1767435586634,0.01114491,89727.0,89722.0,0.06687285]
[1767435586817,0.01114479,89728.0,89723.0,0.01114541]
[1767435587019,0.01114491,89727.0,89722.0,0.06687285]
[1767435587620,0.01114491,89727.0,89723.0,0.01114541]
[1767435587969,0.000999,89723.0,89722.0,0.01114553]
[1767435588465,0.01114491,89727.0,89722.0,0.01114553]
[1767435589777,0.01114479,89728.0,89722.0,0.01114553]
[1767435590273,0.01114479,89728.0,89721.0,0.01114566]
[1767435590485,0.01114479,89728.0,89722.0,0.01114553]
[1767435591897,0.06686858,89729.0,89722.0,0.01114553]
[1767435591898,0.01114466,89729.0,89724.0,0.01114529]
[1767435592441,0.01114479,89728.0,89723.0,0.01114541]
[1767435593100,0.01114479,89728.0,89724.0,0.01114529]
[1767435595668,0.01114479,89728.0,89723.0,0.01114541]
[1767435597659,0.01114466,89729.0,89724.0,0.01114529]
[1767435598990,0.01114479,89728.0,89723.0,0.01114541]
[1767435600652,0.01114466,89729.0,89724.0,0.01114529]
[1767435600849,0.01114442,89731.0,89724.0,0.01114529]
[1767435601053,0.01114454,89730.0,89724.0,0.01114529]
[1767435601214,0.01114454,89730.0,89725.0,0.01114516]
[1767435601408,0.01114454,89730.0,89724.0,0.01114529]
[1767435601613,0.01114454,89730.0,89725.0,0.01114516]
[1767435602053,0.01114454,89730.0,89726.0,0.01114504]
[1767435602258,0.01114454,89730.0,89725.0,0.01114516]
[1767435602556,0.01114466,89729.0,89725.0,0.01114516]